[Event "Titled Tuesday Blitz June 21 Early 2022"]
[White "Flynn, Jacob"]
[Black "Abdi, Farzad"]
[WhiteFideId "2509393"]
[BlackFideId "2076829"]
[WhiteElo "1896"]
[BlackElo "2280"]
[Result "1-0"]
[Round "07"]
[TimeControl "180+1"]
[Date "2022.06.22"]
[WhiteClock "0:01:08"]
[BlackClock "0:00:02"]

1. d4 {[%clk 0:03:00]}  Nf6 {[%clk 0:02:59]} 2. c4 {[%clk 0:03:01]}  e5 {[%clk 0:03:00]} 3. dxe5 {[%clk 0:03:01]}  Ng4 {[%clk 0:03:00]} 4. Bf4 {[%clk 0:03:01]}  g5 {[%clk 0:02:51]} 5. Bg3 {[%clk 0:03:01]}  Nc6 {[%clk 0:02:50]} 6. Nf3 {[%clk 0:02:59]}  Bg7 {[%clk 0:02:38]} 7. Nc3 {[%clk 0:02:58]}  Ngxe5 {[%clk 0:02:33]} 8. Nxe5 {[%clk 0:02:58]}  Nxe5 {[%clk 0:02:33]} 9. e3 {[%clk 0:02:58]}  d6 {[%clk 0:02:31]} 10. h4 {[%clk 0:02:58]}  g4 {[%clk 0:02:30]} 11. h5 {[%clk 0:02:58]}  h6 {[%clk 0:02:27]} 12. Be2 {[%clk 0:02:58]}  Bf5 {[%clk 0:02:25]} 13. e4 {[%clk 0:02:49]}  Bh7 {[%clk 0:02:19]} 14. Qd2 {[%clk 0:02:49]}  a6 {[%clk 0:01:50]} 15. O-O-O {[%clk 0:02:41]}  b5 {[%clk 0:01:47]} 16. cxb5 {[%clk 0:02:39]}  axb5 {[%clk 0:01:44]} 17. Bxb5+ {[%clk 0:02:36]}  Kf8 {[%clk 0:01:44]} 18. Kb1 {[%clk 0:02:31]}  c6 {[%clk 0:01:38]} 19. Be2 {[%clk 0:02:29]}  d5 {[%clk 0:01:29]} 20. Ka1 {[%clk 0:02:12]}  Qa5 {[%clk 0:00:40]} 21. exd5 {[%clk 0:01:58]}  c5 {[%clk 0:00:20]} 22. d6 {[%clk 0:01:53]}  c4 {[%clk 0:00:19]} 23. Bxe5 {[%clk 0:01:36]}  Bxe5 {[%clk 0:00:18]} 24. d7 {[%clk 0:01:37]}  Rd8 {[%clk 0:00:05]} 25. Bxc4 {[%clk 0:01:37]}  Kg7 {[%clk 0:00:05]} 26. Rhe1 {[%clk 0:01:14]}  Rxd7 {[%clk 0:00:03]} 27. Qxd7 {[%clk 0:01:09]}  Qxc3 {[%clk 0:00:02]} 28. Qxf7# {[%clk 0:01:08]} 1-0


[Site "https://www.chess.com"]

[Event "Titled Tuesday Blitz June 21 Early 2022"]
[White "Harsh Suresh"]
[Black "parintele_chess"]
[WhiteFideId "45018464"]
[WhiteElo "2059"]
[BlackElo "2238"]
[Result "1-0"]
[Round "07"]
[TimeControl "180+1"]
[Date "2022.06.22"]
[WhiteClock "0:00:56"]
[BlackClock "0:00:41"]

1. e4 {[%clk 0:03:00]}  c6 {[%clk 0:02:59]} 2. d4 {[%clk 0:02:54]}  d5 {[%clk 0:02:59]} 3. e5 {[%clk 0:02:54]}  Bf5 {[%clk 0:02:59]} 4. Nf3 {[%clk 0:02:50]}  e6 {[%clk 0:02:59]} 5. Be2 {[%clk 0:02:50]}  Ne7 {[%clk 0:02:57]} 6. Nbd2 {[%clk 0:02:47]}  c5 {[%clk 0:02:56]} 7. c3 {[%clk 0:02:46]}  Nbc6 {[%clk 0:02:56]} 8. Nf1 {[%clk 0:02:41]}  Bg4 {[%clk 0:02:55]} 9. Ne3 {[%clk 0:02:39]}  Bxf3 {[%clk 0:02:55]} 10. Bxf3 {[%clk 0:02:40]}  g6 {[%clk 0:02:53]} 11. h4 {[%clk 0:02:39]}  h5 {[%clk 0:02:53]} 12. O-O {[%clk 0:02:37]}  Nf5 {[%clk 0:02:52]} 13. Nxf5 {[%clk 0:02:34]}  gxf5 {[%clk 0:02:53]} 14. g3 {[%clk 0:02:34]}  Be7 {[%clk 0:02:52]} 15. Be3 {[%clk 0:02:31]}  Rg8 {[%clk 0:02:49]} 16. Bg2 {[%clk 0:02:19]}  Rg4 {[%clk 0:02:09]} 17. Kh2 {[%clk 0:02:17]}  Bxh4 {[%clk 0:02:08]} 18. Bh3 {[%clk 0:01:52]}  Re4 {[%clk 0:01:40]} 19. gxh4 {[%clk 0:01:36]}  f4 {[%clk 0:01:40]} 20. Bd2 {[%clk 0:01:30]}  cxd4 {[%clk 0:01:40]} 21. cxd4 {[%clk 0:01:30]}  Qxh4 {[%clk 0:01:35]} 22. Bc3 {[%clk 0:01:07]}  O-O-O {[%clk 0:01:12]} 23. Qf3 {[%clk 0:01:06]}  Nxd4 {[%clk 0:01:01]} 24. Bxd4 {[%clk 0:01:02]}  Rxd4 {[%clk 0:01:01]} 25. Rac1+ {[%clk 0:00:59]}  Kb8 {[%clk 0:00:59]} 26. Rfd1 {[%clk 0:00:58]}  Rxd1 {[%clk 0:00:53]} 27. Rxd1 {[%clk 0:00:59]}  Rc8 {[%clk 0:00:49]} 28. Rd4 {[%clk 0:00:58]}  Rc2 {[%clk 0:00:47]} 29. Rxf4 {[%clk 0:00:57]}  Rxb2 {[%clk 0:00:41]} 30. Rxh4 {[%clk 0:00:56]} 1-0


[Site "https://www.chess.com"]

[Event "Titled Tuesday Blitz June 21 Early 2022"]
[White "Hosseinzadeh, Nima"]
[Black "Bryakin, Mikhail"]
[WhiteFideId "12505323"]
[BlackFideId "4165314"]
[WhiteElo "2066"]
[BlackElo "2417"]
[Result "0-1"]
[Round "07"]
[TimeControl "180+1"]
[Date "2022.06.22"]
[WhiteClock "0:01:38"]
[BlackClock "0:01:09"]

1. e4 {[%clk 0:02:52]}  c5 {[%clk 0:02:07]} 2. Nf3 {[%clk 0:02:50]}  d6 {[%clk 0:02:03]} 3. d4 {[%clk 0:02:49]}  cxd4 {[%clk 0:02:03]} 4. Nxd4 {[%clk 0:02:50]}  Nf6 {[%clk 0:02:02]} 5. Nc3 {[%clk 0:02:51]}  Nc6 {[%clk 0:02:00]} 6. Bg5 {[%clk 0:02:50]}  e6 {[%clk 0:02:00]} 7. Qd2 {[%clk 0:02:49]}  Be7 {[%clk 0:02:00]} 8. O-O-O {[%clk 0:02:49]}  a6 {[%clk 0:01:58]} 9. f4 {[%clk 0:02:48]}  Qa5 {[%clk 0:01:56]} 10. Kb1 {[%clk 0:02:34]}  h6 {[%clk 0:01:47]} 11. Bh4 {[%clk 0:02:15]}  Bd7 {[%clk 0:01:43]} 12. e5 {[%clk 0:02:09]}  dxe5 {[%clk 0:01:39]} 13. Bxf6 {[%clk 0:02:04]}  Bxf6 {[%clk 0:01:34]} 14. Nf5 {[%clk 0:01:46]}  O-O {[%clk 0:01:21]} 15. Nxh6+ {[%clk 0:01:41]}  gxh6 {[%clk 0:01:22]} 16. Qxd7 {[%clk 0:01:41]}  Rad8 {[%clk 0:01:12]} 17. Qxb7 {[%clk 0:01:41]}  Qxc3 {[%clk 0:01:09]} 18. bxc3 {[%clk 0:01:37]}  Rxd1+ {[%clk 0:01:10]} 19. Kb2 {[%clk 0:01:38]}  Rb8 {[%clk 0:01:09]} 0-1


[Site "https://www.chess.com"]

[Event "Titled Tuesday Blitz June 21 Early 2022"]
[White "Ianov, Viktor"]
[Black "Korchmar, Vasiliy"]
[WhiteFideId "14102730"]
[BlackFideId "24131750"]
[WhiteElo "2152"]
[BlackElo "2370"]
[Result "0-1"]
[Round "07"]
[TimeControl "180+1"]
[Date "2022.06.21"]
[WhiteClock "0:01:09"]
[BlackClock "0:00:09"]

1. Nf3 {[%clk 0:03:00]}  d5 {[%clk 0:02:55]} 2. g3 {[%clk 0:03:00]}  Nc6 {[%clk 0:02:54]} 3. Bg2 {[%clk 0:03:00]}  Bg4 {[%clk 0:02:51]} 4. c4 {[%clk 0:02:59]}  dxc4 {[%clk 0:02:38]} 5. Qa4 {[%clk 0:02:58]}  Qd7 {[%clk 0:02:36]} 6. Qxc4 {[%clk 0:02:57]}  e5 {[%clk 0:02:20]} 7. Nc3 {[%clk 0:02:55]}  O-O-O {[%clk 0:02:15]} 8. d3 {[%clk 0:02:55]}  Kb8 {[%clk 0:02:08]} 9. Be3 {[%clk 0:02:53]}  Nf6 {[%clk 0:01:50]} 10. Rc1 {[%clk 0:02:50]}  Bh3 {[%clk 0:01:37]} 11. Bxh3 {[%clk 0:02:48]}  Qxh3 {[%clk 0:01:38]} 12. Qxf7 {[%clk 0:02:44]}  e4 {[%clk 0:01:28]} 13. dxe4 {[%clk 0:02:36]}  Bb4 {[%clk 0:01:28]} 14. Qc4 {[%clk 0:02:26]}  Rhe8 {[%clk 0:01:23]} 15. e5 {[%clk 0:02:20]}  Ng4 {[%clk 0:01:13]} 16. Bd2 {[%clk 0:02:07]}  Qg2 {[%clk 0:01:11]} 17. Rf1 {[%clk 0:02:06]}  Ngxe5 {[%clk 0:01:10]} 18. Nxe5 {[%clk 0:02:03]}  Nxe5 {[%clk 0:01:11]} 19. Qe4 {[%clk 0:01:49]}  Nd3+ {[%clk 0:00:32]} 20. exd3 {[%clk 0:01:47]}  Bxc3 {[%clk 0:00:22]} 21. Rxc3 {[%clk 0:01:40]}  Rxe4+ {[%clk 0:00:20]} 22. dxe4 {[%clk 0:01:39]}  Qxe4+ {[%clk 0:00:21]} 23. Be3 {[%clk 0:01:37]}  Qb1+ {[%clk 0:00:20]} 24. Rc1 {[%clk 0:01:36]}  Qxb2 {[%clk 0:00:19]} 25. Rh1 {[%clk 0:01:33]}  Qxa2 {[%clk 0:00:18]} 26. Kf1 {[%clk 0:01:32]}  Qd5 {[%clk 0:00:16]} 27. Kg1 {[%clk 0:01:31]}  Qf3 {[%clk 0:00:14]} 28. h4 {[%clk 0:01:31]}  Rd1+ {[%clk 0:00:12]} 29. Rxd1 {[%clk 0:01:30]}  Qxd1+ {[%clk 0:00:13]} 30. Kg2 {[%clk 0:01:30]}  Qe2 {[%clk 0:00:12]} 31. Rc1 {[%clk 0:01:28]}  b6 {[%clk 0:00:11]} 32. Rc6 {[%clk 0:01:26]}  Qd3 {[%clk 0:00:08]} 33. Rc1 {[%clk 0:01:24]}  Qd5+ {[%clk 0:00:08]} 34. Kh2 {[%clk 0:01:23]}  a5 {[%clk 0:00:09]} 35. Bf4 {[%clk 0:01:22]}  Qd7 {[%clk 0:00:09]} 36. Kg2 {[%clk 0:01:20]}  a4 {[%clk 0:00:09]} 37. h5 {[%clk 0:01:18]}  b5 {[%clk 0:00:08]} 38. Rc5 {[%clk 0:01:16]}  Kb7 {[%clk 0:00:08]} 39. Kf3 {[%clk 0:01:14]}  c6 {[%clk 0:00:08]} 40. Ke3 {[%clk 0:01:13]}  a3 {[%clk 0:00:08]} 41. Rc2 {[%clk 0:01:12]}  a2 {[%clk 0:00:08]} 42. Rxa2 {[%clk 0:01:10]}  Qe6+ {[%clk 0:00:08]} 43. Kd4 {[%clk 0:01:09]}  Qxa2 {[%clk 0:00:09]} 0-1


[Site "https://www.chess.com"]

[Event "Titled Tuesday Blitz June 21 Early 2022"]
[White "Itkis, Boris"]
[Black "Maiorov, Nikita"]
[WhiteFideId "1209167"]
[BlackFideId "13501720"]
[WhiteElo "2207"]
[BlackElo "2417"]
[Result "0-1"]
[Round "07"]
[TimeControl "180+1"]
[Date "2022.06.22"]
[WhiteClock "0:00:04"]
[BlackClock "0:00:06"]

1. Nf3 {[%clk 0:03:00]}  d5 {[%clk 0:02:54]} 2. b3 {[%clk 0:03:00]}  e6 {[%clk 0:02:54]} 3. Bb2 {[%clk 0:02:59]}  Nf6 {[%clk 0:02:53]} 4. e3 {[%clk 0:02:59]}  Be7 {[%clk 0:02:52]} 5. d4 {[%clk 0:02:59]}  O-O {[%clk 0:02:51]} 6. Nbd2 {[%clk 0:02:59]}  c5 {[%clk 0:02:51]} 7. Bd3 {[%clk 0:02:58]}  Nc6 {[%clk 0:02:50]} 8. O-O {[%clk 0:02:57]}  b6 {[%clk 0:02:50]} 9. c4 {[%clk 0:02:56]}  cxd4 {[%clk 0:02:47]} 10. Nxd4 {[%clk 0:02:55]}  Nb4 {[%clk 0:02:45]} 11. Bb1 {[%clk 0:02:51]}  dxc4 {[%clk 0:02:38]} 12. Nxc4 {[%clk 0:02:45]}  Bb7 {[%clk 0:02:37]} 13. a3 {[%clk 0:02:45]}  Nbd5 {[%clk 0:02:36]} 14. Nf3 {[%clk 0:02:29]}  Rc8 {[%clk 0:02:29]} 15. Qd4 {[%clk 0:02:20]}  b5 {[%clk 0:02:25]} 16. Nce5 {[%clk 0:01:59]}  a6 {[%clk 0:02:24]} 17. Rd1 {[%clk 0:01:52]}  Qc7 {[%clk 0:01:33]} 18. Bd3 {[%clk 0:01:15]}  Qb6 {[%clk 0:01:11]} 19. Qxb6 {[%clk 0:01:04]}  Nxb6 {[%clk 0:01:10]} 20. Bd4 {[%clk 0:01:02]}  Nbd5 {[%clk 0:01:09]} 21. Bf1 {[%clk 0:00:41]}  Ne4 {[%clk 0:01:05]} 22. b4 {[%clk 0:00:22]}  Rfd8 {[%clk 0:00:58]} 23. Rac1 {[%clk 0:00:20]}  f6 {[%clk 0:00:44]} 24. Nd3 {[%clk 0:00:20]}  Ndc3 {[%clk 0:00:40]} 25. Bxc3 {[%clk 0:00:18]}  Nxc3 {[%clk 0:00:39]} 26. Rd2 {[%clk 0:00:18]}  Ne4 {[%clk 0:00:31]} 27. Rdc2 {[%clk 0:00:17]}  Rxc2 {[%clk 0:00:27]} 28. Rxc2 {[%clk 0:00:18]}  Bf8 {[%clk 0:00:23]} 29. Nd2 {[%clk 0:00:17]}  Nxd2 {[%clk 0:00:22]} 30. Rxd2 {[%clk 0:00:17]}  e5 {[%clk 0:00:22]} 31. Rd1 {[%clk 0:00:16]}  Rc8 {[%clk 0:00:19]} 32. Rc1 {[%clk 0:00:15]}  Rxc1 {[%clk 0:00:18]} 33. Nxc1 {[%clk 0:00:16]}  e4 {[%clk 0:00:18]} 34. Nb3 {[%clk 0:00:15]}  Kf7 {[%clk 0:00:17]} 35. Na5 {[%clk 0:00:12]}  Bd5 {[%clk 0:00:16]} 36. Be2 {[%clk 0:00:12]}  Ke6 {[%clk 0:00:16]} 37. Kf1 {[%clk 0:00:12]}  Bd6 {[%clk 0:00:14]} 38. Ke1 {[%clk 0:00:12]}  Be5 {[%clk 0:00:10]} 39. a4 {[%clk 0:00:09]}  bxa4 {[%clk 0:00:10]} 40. Bxa6 {[%clk 0:00:09]}  a3 {[%clk 0:00:10]} 41. Bc4 {[%clk 0:00:04]}  a2 {[%clk 0:00:09]} 42. Bxa2 {[%clk 0:00:04]}  Bxa2 {[%clk 0:00:08]} 43. Kd2 {[%clk 0:00:04]}  Bd5 {[%clk 0:00:08]} 44. g3 {[%clk 0:00:03]}  g5 {[%clk 0:00:07]} 45. b5 {[%clk 0:00:03]}  h5 {[%clk 0:00:07]} 46. b6 {[%clk 0:00:04]}  Kd7 {[%clk 0:00:06]} 0-1


[Site "https://www.chess.com"]

[Event "Titled Tuesday Blitz June 21 Early 2022"]
[White "Jeet, Jain"]
[Black "Veiga, Jose Francisco R P Neves"]
[WhiteFideId "5073022"]
[BlackFideId "1930087"]
[WhiteElo "2055"]
[BlackElo "2326"]
[Result "1-0"]
[Round "07"]
[TimeControl "180+1"]
[Date "2022.06.22"]
[WhiteClock "0:01:07"]
[BlackClock "0:00:03"]

1. c4 {[%clk 0:03:00]}  Nc6 {[%clk 0:01:56]} 2. e3 {[%clk 0:03:00]}  e5 {[%clk 0:01:56]} 3. d4 {[%clk 0:02:57]}  exd4 {[%clk 0:01:56]} 4. exd4 {[%clk 0:02:58]}  d5 {[%clk 0:01:57]} 5. c5 {[%clk 0:02:54]}  Nf6 {[%clk 0:01:54]} 6. Nc3 {[%clk 0:02:54]}  Be7 {[%clk 0:01:53]} 7. Nf3 {[%clk 0:02:54]}  O-O {[%clk 0:01:53]} 8. Be2 {[%clk 0:02:53]}  Bg4 {[%clk 0:01:52]} 9. O-O {[%clk 0:02:53]}  Re8 {[%clk 0:01:53]} 10. h3 {[%clk 0:02:53]}  Bh5 {[%clk 0:01:52]} 11. Bf4 {[%clk 0:02:50]}  Bf8 {[%clk 0:01:50]} 12. a3 {[%clk 0:02:48]}  Ne7 {[%clk 0:01:49]} 13. Be5 {[%clk 0:02:41]}  Ne4 {[%clk 0:01:44]} 14. Nb5 {[%clk 0:02:29]}  c6 {[%clk 0:01:37]} 15. Nc7 {[%clk 0:02:28]}  Rc8 {[%clk 0:01:16]} 16. Nxe8 {[%clk 0:02:27]}  Qxe8 {[%clk 0:01:17]} 17. Re1 {[%clk 0:02:23]}  Qd7 {[%clk 0:01:16]} 18. Nd2 {[%clk 0:02:21]}  Bxe2 {[%clk 0:01:12]} 19. Qxe2 {[%clk 0:02:22]}  f6 {[%clk 0:01:07]} 20. Bh2 {[%clk 0:02:19]}  Ng5 {[%clk 0:00:39]} 21. h4 {[%clk 0:02:09]}  Nf7 {[%clk 0:00:38]} 22. Qe6 {[%clk 0:02:08]}  Qxe6 {[%clk 0:00:38]} 23. Rxe6 {[%clk 0:02:08]}  Nf5 {[%clk 0:00:39]} 24. Nf3 {[%clk 0:02:06]}  Nd8 {[%clk 0:00:28]} 25. Re2 {[%clk 0:02:04]}  b6 {[%clk 0:00:27]} 26. b4 {[%clk 0:02:00]}  Kf7 {[%clk 0:00:20]} 27. Rae1 {[%clk 0:01:54]}  Nb7 {[%clk 0:00:20]} 28. Bf4 {[%clk 0:01:51]}  bxc5 {[%clk 0:00:19]} 29. bxc5 {[%clk 0:01:51]}  Na5 {[%clk 0:00:19]} 30. Rb1 {[%clk 0:01:47]}  h5 {[%clk 0:00:14]} 31. Bd2 {[%clk 0:01:44]}  Nc4 {[%clk 0:00:13]} 32. Rb7+ {[%clk 0:01:44]}  Kg6 {[%clk 0:00:14]} 33. Rxa7 {[%clk 0:01:45]}  Rb8 {[%clk 0:00:14]} 34. Bb4 {[%clk 0:01:44]}  Nh6 {[%clk 0:00:05]} 35. Nd2 {[%clk 0:01:40]}  Nb2 {[%clk 0:00:04]} 36. Rc7 {[%clk 0:01:31]}  Nf5 {[%clk 0:00:04]} 37. Nf3 {[%clk 0:01:29]}  Nd3 {[%clk 0:00:04]} 38. Rxc6 {[%clk 0:01:25]}  Nxb4 {[%clk 0:00:05]} 39. axb4 {[%clk 0:01:26]}  Rxb4 {[%clk 0:00:06]} 40. Rc8 {[%clk 0:01:25]}  Rb1+ {[%clk 0:00:06]} 41. Kh2 {[%clk 0:01:25]}  Be7 {[%clk 0:00:06]} 42. Re8 {[%clk 0:01:25]}  Kf7 {[%clk 0:00:05]} 43. Rh8 {[%clk 0:01:22]}  Kg6 {[%clk 0:00:04]} 44. Rc2 {[%clk 0:01:15]}  Rd1 {[%clk 0:00:02]} 45. g3 {[%clk 0:01:07]}  Bd6 {[%clk 0:00:03]} 46. cxd6 {[%clk 0:01:07]} 1-0


[Site "https://www.chess.com"]

[Event "Titled Tuesday Blitz June 21 Early 2022"]
[White "Joubert, Dantelle"]
[Black "Marn, Jan"]
[WhiteFideId "14310813"]
[BlackFideId "14619245"]
[WhiteElo "1507"]
[BlackElo "2105"]
[Result "1/2-1/2"]
[Round "07"]
[TimeControl "180+1"]
[Date "2022.06.22"]
[WhiteClock "0:00:05"]
[BlackClock "0:00:17"]

1. e4 {[%clk 0:03:00]}  e5 {[%clk 0:02:58]} 2. Nf3 {[%clk 0:03:00]}  Nc6 {[%clk 0:02:56]} 3. d4 {[%clk 0:02:59]}  exd4 {[%clk 0:02:56]} 4. Nxd4 {[%clk 0:02:59]}  Nf6 {[%clk 0:02:56]} 5. Nc3 {[%clk 0:02:58]}  Bb4 {[%clk 0:02:56]} 6. Nxc6 {[%clk 0:02:57]}  bxc6 {[%clk 0:02:57]} 7. Bd3 {[%clk 0:02:57]}  O-O {[%clk 0:02:50]} 8. O-O {[%clk 0:02:55]}  Re8 {[%clk 0:02:50]} 9. Bd2 {[%clk 0:02:53]}  Rb8 {[%clk 0:02:47]} 10. f4 {[%clk 0:02:45]}  Bxc3 {[%clk 0:02:23]} 11. Bxc3 {[%clk 0:02:43]}  Nxe4 {[%clk 0:02:23]} 12. Qg4 {[%clk 0:02:38]}  Nxc3 {[%clk 0:02:20]} 13. bxc3 {[%clk 0:02:38]}  d5 {[%clk 0:02:20]} 14. Qh5 {[%clk 0:02:32]}  g6 {[%clk 0:02:19]} 15. Qh6 {[%clk 0:02:31]}  Qf6 {[%clk 0:02:15]} 16. f5 {[%clk 0:02:16]}  Qxc3 {[%clk 0:02:02]} 17. fxg6 {[%clk 0:02:14]}  fxg6 {[%clk 0:01:59]} 18. Bxg6 {[%clk 0:02:12]}  Qe3+ {[%clk 0:01:54]} 19. Qxe3 {[%clk 0:02:10]}  Rxe3 {[%clk 0:01:54]} 20. Bd3 {[%clk 0:01:57]}  c5 {[%clk 0:01:51]} 21. Rae1 {[%clk 0:01:41]}  Rxe1 {[%clk 0:01:47]} 22. Rxe1 {[%clk 0:01:40]}  c4 {[%clk 0:01:48]} 23. Bf1 {[%clk 0:01:26]}  Bf5 {[%clk 0:01:48]} 24. Re5 {[%clk 0:01:19]}  Be4 {[%clk 0:01:47]} 25. Bxc4 {[%clk 0:01:18]}  c6 {[%clk 0:01:38]} 26. Bd3 {[%clk 0:01:05]}  Bxd3 {[%clk 0:01:38]} 27. cxd3 {[%clk 0:01:05]}  Rb1+ {[%clk 0:01:39]} 28. Kf2 {[%clk 0:01:04]}  Rb2+ {[%clk 0:01:36]} 29. Kf3 {[%clk 0:01:03]}  Rxa2 {[%clk 0:01:36]} 30. Re6 {[%clk 0:01:00]}  Ra6 {[%clk 0:01:30]} 31. Ke3 {[%clk 0:00:57]}  Kf7 {[%clk 0:01:30]} 32. Rh6 {[%clk 0:00:56]}  Kg7 {[%clk 0:01:30]} 33. Re6 {[%clk 0:00:54]}  h5 {[%clk 0:01:08]} 34. g3 {[%clk 0:00:49]}  Ra2 {[%clk 0:00:42]} 35. Rxc6 {[%clk 0:00:43]}  Rxh2 {[%clk 0:00:41]} 36. Rc7+ {[%clk 0:00:43]}  Kf6 {[%clk 0:00:42]} 37. Rxa7 {[%clk 0:00:41]}  Rh3 {[%clk 0:00:35]} 38. Kf4 {[%clk 0:00:39]}  Rh1 {[%clk 0:00:36]} 39. Ra6+ {[%clk 0:00:38]}  Ke7 {[%clk 0:00:36]} 40. Ke5 {[%clk 0:00:34]}  Rg1 {[%clk 0:00:35]} 41. Ra7+ {[%clk 0:00:27]}  Kf8 {[%clk 0:00:31]} 42. Kxd5 {[%clk 0:00:20]}  Rxg3 {[%clk 0:00:31]} 43. d4 {[%clk 0:00:19]}  h4 {[%clk 0:00:31]} 44. Rh7 {[%clk 0:00:18]}  h3 {[%clk 0:00:31]} 45. Ke6 {[%clk 0:00:17]}  Kg8 {[%clk 0:00:27]} 46. Rh4 {[%clk 0:00:15]}  Re3+ {[%clk 0:00:24]} 47. Kd6 {[%clk 0:00:15]}  Rd3 {[%clk 0:00:19]} 48. d5 {[%clk 0:00:13]}  Kf7 {[%clk 0:00:20]} 49. Kc6 {[%clk 0:00:12]}  Ke7 {[%clk 0:00:21]} 50. Rh7+ {[%clk 0:00:10]}  Ke8 {[%clk 0:00:21]} 51. d6 {[%clk 0:00:08]}  Rc3+ {[%clk 0:00:21]} 52. Kd5 {[%clk 0:00:08]}  Kd8 {[%clk 0:00:21]} 53. Ke6 {[%clk 0:00:06]}  Re3+ {[%clk 0:00:20]} 54. Kd5 {[%clk 0:00:06]}  Rd3+ {[%clk 0:00:17]} 55. Ke6 {[%clk 0:00:04]}  Re3+ {[%clk 0:00:17]} 56. Kd5 {[%clk 0:00:04]}  Ra3 {[%clk 0:00:17]} 57. Ke6 {[%clk 0:00:05]}  Re3+ {[%clk 0:00:17]} 1/2-1/2


[Site "https://www.chess.com"]

[Event "Titled Tuesday Blitz June 21 Early 2022"]
[White "Kalaiyalahan, Akshaya"]
[Black "Antonio, Jorge Carlos"]
[WhiteFideId "422894"]
[BlackFideId "113190"]
[WhiteElo "1913"]
[BlackElo "2247"]
[Result "0-1"]
[Round "07"]
[TimeControl "180+1"]
[Date "2022.06.22"]
[WhiteClock "0:00:09"]
[BlackClock "0:00:47"]

1. c4 {[%clk 0:02:59]}  e5 {[%clk 0:02:58]} 2. Nc3 {[%clk 0:02:58]}  Nc6 {[%clk 0:02:56]} 3. g3 {[%clk 0:02:58]}  f5 {[%clk 0:02:56]} 4. Bg2 {[%clk 0:02:57]}  Nf6 {[%clk 0:02:56]} 5. d3 {[%clk 0:02:57]}  Bb4 {[%clk 0:02:52]} 6. Bd2 {[%clk 0:02:51]}  d6 {[%clk 0:02:52]} 7. a3 {[%clk 0:02:50]}  Bxc3 {[%clk 0:02:49]} 8. Bxc3 {[%clk 0:02:50]}  O-O {[%clk 0:02:46]} 9. e3 {[%clk 0:02:49]}  Qe8 {[%clk 0:02:43]} 10. Ne2 {[%clk 0:02:48]}  Bd7 {[%clk 0:02:43]} 11. O-O {[%clk 0:02:47]}  Qh5 {[%clk 0:02:40]} 12. b4 {[%clk 0:02:46]}  Ng4 {[%clk 0:02:39]} 13. h3 {[%clk 0:02:44]}  Nf6 {[%clk 0:02:35]} 14. b5 {[%clk 0:02:44]}  Nd8 {[%clk 0:02:31]} 15. Nc1 {[%clk 0:02:43]}  g5 {[%clk 0:02:22]} 16. Qxh5 {[%clk 0:02:41]}  Nxh5 {[%clk 0:02:20]} 17. a4 {[%clk 0:02:37]}  f4 {[%clk 0:02:21]} 18. exf4 {[%clk 0:02:29]}  gxf4 {[%clk 0:02:17]} 19. Bd5+ {[%clk 0:02:26]}  Be6 {[%clk 0:02:14]} 20. Bxe6+ {[%clk 0:02:23]}  Nxe6 {[%clk 0:02:13]} 21. g4 {[%clk 0:02:23]}  Nf6 {[%clk 0:02:10]} 22. f3 {[%clk 0:02:23]}  a6 {[%clk 0:02:06]} 23. Nb3 {[%clk 0:02:20]}  h5 {[%clk 0:02:03]} 24. Kf2 {[%clk 0:02:19]}  Kf7 {[%clk 0:01:59]} 25. Bb4 {[%clk 0:01:55]}  hxg4 {[%clk 0:01:55]} 26. hxg4 {[%clk 0:01:54]}  Rh8 {[%clk 0:01:52]} 27. Kg2 {[%clk 0:01:54]}  Ng5 {[%clk 0:01:49]} 28. Na5 {[%clk 0:01:39]}  Rh3 {[%clk 0:01:43]} 29. Nxb7 {[%clk 0:01:06]}  Rg3+ {[%clk 0:01:40]} 30. Kf2 {[%clk 0:01:06]}  Rxf3+ {[%clk 0:01:38]} 31. Ke2 {[%clk 0:01:07]}  Re3+ {[%clk 0:01:30]} 32. Kd2 {[%clk 0:01:06]}  Rh8 {[%clk 0:01:23]} 33. bxa6 {[%clk 0:01:03]}  Nf3+ {[%clk 0:01:16]} 34. Kc1 {[%clk 0:00:47]}  Rxd3 {[%clk 0:01:12]} 35. c5 {[%clk 0:00:38]}  Nd5 {[%clk 0:01:04]} 36. cxd6 {[%clk 0:00:31]}  Nxb4 {[%clk 0:01:00]} 37. dxc7 {[%clk 0:00:20]}  Rc8 {[%clk 0:00:57]} 38. a7 {[%clk 0:00:12]}  Rxc7+ {[%clk 0:00:53]} 39. Kb2 {[%clk 0:00:10]}  Rc2+ {[%clk 0:00:49]} 40. Kb1 {[%clk 0:00:09]}  Nd2# {[%clk 0:00:47]} 0-1


[Site "https://www.chess.com"]

[Event "Titled Tuesday Blitz June 21 Early 2022"]
[White "Kobalia, Mikhail"]
[Black "Sadhwani, Raunak"]
[WhiteFideId "4119150"]
[BlackFideId "35093487"]
[WhiteElo "2667"]
[BlackElo "2616"]
[Result "0-1"]
[Round "07"]
[TimeControl "180+1"]
[Date "2022.06.21"]
[WhiteClock "0:00:15"]
[BlackClock "0:01:31"]

1. e4 {[%clk 0:02:56]}  e5 {[%clk 0:02:59]} 2. Nf3 {[%clk 0:02:54]}  Nc6 {[%clk 0:03:00]} 3. Bb5 {[%clk 0:02:54]}  Nge7 {[%clk 0:03:00]} 4. O-O {[%clk 0:02:52]}  Ng6 {[%clk 0:03:00]} 5. c3 {[%clk 0:02:50]}  a6 {[%clk 0:02:58]} 6. Ba4 {[%clk 0:02:50]}  d5 {[%clk 0:02:55]} 7. exd5 {[%clk 0:02:48]}  Qxd5 {[%clk 0:02:56]} 8. d4 {[%clk 0:02:48]}  Bg4 {[%clk 0:02:56]} 9. dxe5 {[%clk 0:02:41]}  O-O-O {[%clk 0:02:54]} 10. Qxd5 {[%clk 0:02:37]}  Rxd5 {[%clk 0:02:55]} 11. Nbd2 {[%clk 0:02:15]}  Ncxe5 {[%clk 0:02:49]} 12. Nxe5 {[%clk 0:02:13]}  Nxe5 {[%clk 0:02:49]} 13. Bb3 {[%clk 0:02:13]}  Rd7 {[%clk 0:02:45]} 14. Ne4 {[%clk 0:02:12]}  Nd3 {[%clk 0:02:44]} 15. f3 {[%clk 0:01:28]}  Bf5 {[%clk 0:02:43]} 16. Rb1 {[%clk 0:01:13]}  Bxe4 {[%clk 0:02:15]} 17. fxe4 {[%clk 0:01:12]}  Bc5+ {[%clk 0:02:16]} 18. Kh1 {[%clk 0:01:04]}  Nf2+ {[%clk 0:02:16]} 19. Kg1 {[%clk 0:01:02]}  Nxe4+ {[%clk 0:02:16]} 20. Kh1 {[%clk 0:01:01]}  Nf2+ {[%clk 0:02:16]} 21. Kg1 {[%clk 0:01:01]}  Re8 {[%clk 0:02:16]} 22. h4 {[%clk 0:00:29]}  Re4 {[%clk 0:01:42]} 23. g3 {[%clk 0:00:27]}  Re2 {[%clk 0:01:35]} 24. Kg2 {[%clk 0:00:21]}  Rde7 {[%clk 0:01:33]} 25. Kf3 {[%clk 0:00:19]}  h5 {[%clk 0:01:31]} 26. Bg5 {[%clk 0:00:16]}  f6 {[%clk 0:01:31]} 27. Bf4 {[%clk 0:00:15]}  Ng4 {[%clk 0:01:31]} 0-1


[Site "https://www.chess.com"]